bitfinex-derivatives/quotes_SOLF0:USTF0_20250428
["timestamp","ask_amount","ask_price","bid_price","bid_amount"]
[1745849600495,6.7321,148.49,148.46,6.7331]
[1745849600995,6.7318,148.5,148.46,6.7331]
[1745849602694,2.0076,148.57,148.43,486.3652]
[1745849602895,2.0388,148.58,148.44,13.4686]
[1745849603097,2.0388,148.58,148.54,6.7295]
[1745849603294,2.0388,148.58,148.44,13.4686]
[1745849603496,2.0388,148.58,148.46,3.9984]
[1745849603886,8.7669,148.58,148.46,3.9984]
[1745849604395,2.0388,148.58,148.55,6.7292]
[1745849605400,8.767,148.58,148.55,6.7292]
[1745849606200,6.7285,148.57,148.54,6.7297]
[1745849606398,2.0388,148.58,148.46,3.9984]
[1745849606801,1.9997,148.57,148.46,3.9984]
[1745849607000,1.9997,148.57,148.43,486.3652]
[1745849607797,6.7314,148.51,148.47,6.7329]
[1745849608499,6.7318,148.5,148.46,6.733]
[1745849608700,1.9997,148.57,148.43,486.3652]
[1745849609202,6.7305,148.53,148.43,486.3652]
[1745849609696,6.7305,148.53,148.49,6.7318]
[1745849610199,6.7305,148.53,148.5,6.7316]
[1745849610602,6.7305,148.53,148.43,486.3652]
[1745849610902,6.7305,148.53,148.49,6.7319]
[1745849611295,1.9997,148.57,148.43,486.3652]
[1745849611703,6.7305,148.53,148.43,486.3652]
[1745849611998,1.9997,148.57,148.43,486.3652]
[1745849612304,1.9997,148.57,148.5,6.7313]
[1745849612504,1.9997,148.57,148.43,486.3652]
[1745849613111,6.7301,148.54,148.5,6.7312]
[1745849613608,1.9997,148.57,148.5,6.7312]
[1745849614309,1.9997,148.57,148.43,486.3652]
[1745849615209,1.9997,148.57,148.48,6.7324]
[1745849615709,1.9997,148.57,148.43,486.3652]
[1745849615912,365.0,148.56,148.46,6.7332]
[1745849616311,365.0,148.56,148.47,6.7327]
[1745849616808,6.7316,148.51,148.47,6.7327]
[1745849617410,6.7317,148.5,148.47,6.7327]
[1745849617916,365.0,148.56,148.46,6.7333]
[1745849618110,6.7319,148.5,148.43,486.3652]
[1745849619412,6.7319,148.5,148.47,6.7326]
[1745849620609,6.7314,148.51,148.47,6.7326]
[1745849620814,365.0,148.56,148.43,486.3652]
[1745849621115,6.732,148.5,148.43,486.3652]
[1745849622514,6.7322,148.49,148.43,486.3652]
[1745849622713,365.0,148.56,148.43,486.3652]
[1745849622915,6.7319,148.5,148.43,486.3652]
[1745849623617,6.7319,148.5,148.46,6.733]
[1745849624017,6.7319,148.5,148.43,486.3652]
[1745849624318,6.7319,148.5,148.47,6.7329]
[1745849624919,6.7322,148.49,148.46,6.7332]
[1745849628919,365.0,148.56,148.46,6.7332]
[1745849629319,365.0,148.56,148.47,6.7329]
[1745849629520,6.7323,148.49,148.47,6.7329]
[1745849629720,6.7323,148.49,148.43,2.1052]
[1745849630018,6.7323,148.49,148.46,6.733]
[1745849630224,6.7323,148.49,148.43,2.1052]
[1745849630422,6.7323,148.49,148.46,6.7331]
[1745849630620,6.7323,148.49,148.43,2.1052]
[1745849631617,6.7323,148.49,148.47,6.7329]
[1745849633016,6.7313,148.51,148.49,6.732]
[1745849634316,6.7309,148.52,148.5,6.7315]
[1745849634614,365.0,148.56,148.5,6.7315]
[1745849634817,365.0,148.56,148.51,6.7311]
[1745849635216,371.7292,148.56,148.43,2.1052]
[1745849635519,6.7292,148.56,148.44,1.21008795]
[1745849635920,6.7294,148.55,148.46,13.4668]
[1745849636116,6.7294,148.55,148.47,4.0766]
[1745849636319,6.7294,148.55,148.52,6.7303]
[1745849637119,6.7291,148.56,148.53,6.7302]
[1745849637722,6.7291,148.56,148.54,6.7296]
[1745849637918,2.0307,148.6,148.47,4.0766]
[1745849638419,2.0307,148.6,148.48,13.4649]
[1745849638818,2.0307,148.6,148.56,6.7286]
[1745849639420,6.7276,148.59,148.56,6.7286]
[1745849639721,2.0307,148.6,148.56,6.7286]
[1745849640020,6.7278,148.59,148.56,6.7286]
[1745849641322,2.0307,148.6,148.49,1.9619]
[1745849642022,6.7281,148.58,148.49,1.9619]
[1745849642219,2.0307,148.6,148.49,1.9619]
[1745849642517,6.7278,148.59,148.56,6.7287]
[1745849643022,6.7284,148.58,148.55,6.7291]
[1745849643322,2.0307,148.6,148.49,1.9619]
[1745849643822,2.0307,148.6,148.48,484.52]
[1745849644225,6.73,148.54,148.51,6.7311]
[1745849644417,2.0307,148.6,148.48,484.52]
[1745849644917,8.7582,148.6,148.48,484.52]
[1745849645121,6.7275,148.6,148.49,13.464]
[1745849645323,2.1188,148.63,148.49,13.464]
[1745849645823,2.1188,148.63,148.48,484.52]
[1745849646117,6.7264,148.62,148.58,6.7277]
[1745849646623,6.7266,148.61,148.58,6.7277]
[1745849647015,2.1188,148.63,148.53,3.9783]
[1745849647221,6.7268,148.61,148.53,3.9783]
[1745849647624,2.1188,148.63,148.57,6.7281]
[1745849647825,2.1188,148.63,148.53,3.9783]
[1745849648122,2.1188,148.63,148.56,6.7286]
[1745849648423,6.7278,148.59,148.56,6.7286]
[1745849649424,6.7278,148.59,148.57,6.7283]
[1745849651119,6.7273,148.6,148.58,6.7279]
[1745849651315,6.7273,148.6,148.53,3.9783]
[1745849651723,6.7268,148.61,148.53,3.9783]
[1745849652427,2.0671,148.64,148.53,3.9783]
[1745849653225,6.7273,148.6,148.53,3.9783]
[1745849653929,6.7269,148.61,148.53,3.9783]
[1745849654423,2.0671,148.64,148.53,3.9783]
[1745849654624,2.0671,148.64,148.58,6.7277]
[1745849655026,2.0671,148.64,148.53,3.9783]
[1745849655027,6.7275,148.6,148.53,3.9783]
[1745849655228,2.0671,148.64,148.56,6.7285]
[1745849655427,2.0671,148.64,148.53,3.9783]
[1745849656020,2.0671,148.64,148.52,2.0848]
[1745849656327,2.0671,148.64,148.48,484.52]
[1745849656328,2.0671,148.64,148.54,6.7294]
[1745849657227,6.7287,148.57,148.54,6.7294]
[1745849657623,6.729,148.56,148.53,6.73]
[1745849657823,365.0,148.63,148.49,4.2031]
[1745849658026,385.21,148.63,148.49,4.2031]
[1745849658329,6.7303,148.53,148.5,6.7314]
[1745849658525,6.7303,148.53,148.48,484.52]
[1745849658720,1.9803,148.61,148.38,13.4736]
[1745849658924,20.21,148.56,148.39,1.9671]
[1745849659229,6.7319,148.5,148.46,6.7332]
[1745849659428,371.0324,148.55,148.39,1.9671]
[1745849659630,6.0324,148.55,148.39,1.9671]
[1745849660129,6.0324,148.55,148.4,13.4722]
[1745849660535,6.731,148.52,148.48,6.7321]
[1745849660829,6.731,148.52,148.4,13.4722]
[1745849661029,6.7304,148.53,148.4,13.4722]
[1745849661928,6.7308,148.52,148.4,13.4722]
[1745849662229,6.7308,148.52,148.48,6.7323]
[1745849662425,6.7312,148.51,148.48,6.7323]
[1745849662621,6.136,148.6,148.4,13.4722]
[1745849662830,6.136,148.6,148.49,6.7319]
[1745849663128,6.7309,148.52,148.49,6.7319]
[1745849663730,6.7313,148.51,148.48,6.7323]
[1745849663932,13.4552,148.59,148.4,13.4722]
[1745849664429,13.4552,148.59,148.48,6.7323]
[1745849664633,33.6652,148.59,148.4,13.4722]
[1745849665031,33.666,148.58,148.46,6.7331]
[1745849665331,365.0,148.57,148.4,13.4722]
[1745849665531,6.7314,148.51,148.47,6.7326]
[1745849665732,365.0,148.57,148.47,6.7326]
[1745849666029,365.0,148.57,148.4,13.4722]
[1745849666229,6.7319,148.5,148.46,6.733]
[1745849666432,6.7319,148.5,148.4,13.4722]
[1745849666629,6.7319,148.5,148.46,6.733]
[1745849666830,6.7319,148.5,148.4,13.4722]
[1745849667333,6.7315,148.51,148.47,6.7326]
[1745849667633,366.17201313,148.57,148.4,13.4722]
[1745849667925,365.0,148.57,148.4,13.4722]
[1745849668324,365.0,148.57,148.48,6.7322]
[1745849668639,6.7311,148.52,148.48,6.7322]
[1745849669437,6.7311,148.52,148.49,6.7319]
[1745849669832,6.7311,148.52,148.4,13.4722]
[1745849670029,6.7312,148.51,148.48,6.7323]
[1745849670332,365.0,148.57,148.4,13.4722]
[1745849670536,6.7319,148.5,148.46,6.7332]
[1745849670840,366.17225001,148.57,148.46,6.7332]
[1745849671638,6.7318,148.5,148.46,6.7332]
[1745849672834,6.7318,148.5,148.47,6.7329]
[1745849673039,365.0,148.57,148.4,13.4722]
[1745849673538,366.1721513,148.57,148.47,6.7329]
[1745849673739,366.1721513,148.57,148.4,13.4722]
[1745849673940,6.732,148.5,148.46,6.7332]
[1745849674239,386.3821513,148.57,148.4,13.4722]
[1745849674438,365.0,148.56,148.4,13.4722]
[1745849674641,6.7323,148.49,148.46,6.7334]
[1745849675241,6.7326,148.48,148.45,6.7336]
[1745849675439,365.0,148.56,148.45,6.7336]
[1745849676542,6.7323,148.49,148.46,6.7333]
[1745849677040,6.7323,148.49,148.4,13.4722]
[1745849677236,6.7326,148.48,148.4,13.4722]
[1745849677440,365.0,148.56,148.4,13.4722]
[1745849677637,6.7323,148.49,148.4,13.4722]
[1745849677940,365.0,148.56,148.4,13.4722]
[1745849679246,6.7323,148.49,148.46,6.7333]
[1745849680140,365.0,148.56,148.39,1.9671]
[1745849680344,365.0,148.56,148.41,13.4713]
[1745849680743,6.7316,148.5,148.47,6.7327]
[1745849680940,365.0,148.56,148.47,6.7327]
[1745849681143,6.7316,148.5,148.47,6.7327]
[1745849681744,6.7316,148.5,148.46,6.7332]
[1745849681945,6.7316,148.5,148.41,13.4713]
[1745849682442,365.0,148.56,148.39,1.9671]
[1745849682648,13.4589,148.55,148.39,1.9671]
[1745849682949,6.7327,148.48,148.44,6.7339]
[1745849683148,6.7327,148.48,148.39,1.9671]
[1745849683346,26.1593,148.54,148.38,1.9683]
[1745849683547,385.21,148.53,148.35,2.0374]
[1745849683751,385.21,148.53,148.34,2.0527]
[1745849684050,20.21,148.51,148.34,4.0901]
[1745849684248,13.4615,148.52,148.34,4.0901]
[1745849684451,6.7343,148.45,148.41,6.7354]
[1745849684651,6.7343,148.45,148.34,4.0901]
[1745849684852,33.6715,148.52,148.34,4.0901]
[1745849685049,365.0,148.51,148.41,6.7356]
[1745849685652,6.7341,148.45,148.41,6.7356]
[1745849685950,6.7341,148.45,148.34,4.0901]
[1745849686149,6.7343,148.44,148.34,4.0901]
[1745849686351,365.0,148.51,148.42,6.735]
[1745849686547,365.0,148.51,148.34,4.0901]
[1745849686748,6.7335,148.46,148.34,4.0901]
[1745849686949,6.7335,148.46,148.42,6.7349]
[1745849687151,6.7335,148.46,148.34,4.0901]
[1745849688251,6.7335,148.46,148.43,6.7346]
[1745849688749,6.7335,148.46,148.34,4.0901]
[1745849689555,6.7331,148.47,148.36,497.8554]
[1745849689855,6.7331,148.47,148.44,6.734]
[1745849690556,6.7335,148.46,148.44,6.734]
[1745849690852,6.7335,148.46,148.43,6.7345]
[1745849691155,365.0,148.51,148.43,6.7345]
[1745849691350,365.0,148.51,148.36,497.8554]
[1745849691553,6.7337,148.46,148.36,497.8554]
[1745849691860,365.0,148.51,148.36,497.8554]
[1745849692157,365.0,148.51,148.43,6.7345]
[1745849692351,365.0,148.51,148.36,497.8554]
[1745849692858,365.0,148.51,148.43,6.7346]
[1745849693054,365.0,148.51,148.36,497.8554]
[1745849693358,6.7338,148.46,148.43,6.7344]
[1745849694059,6.7332,148.47,148.44,6.7342]
[1745849694353,365.0,148.51,148.36,484.38]
[1745849694558,6.7328,148.48,148.36,484.38]
[1745849695058,6.7328,148.48,148.46,6.7332]
[1745849695357,6.7322,148.49,148.36,484.38]
[1745849695557,6.7322,148.49,148.46,6.7331]
[1745849695961,6.7322,148.49,148.39,13.4726]
[1745849696262,5.9493,148.54,148.41,13.4713]
[1745849696757,6.7314,148.51,148.41,15.4993]
[1745849696967,5.9493,148.54,148.42,13.4705]
[1745849697157,6.7313,148.51,148.49,6.7318]
[1745849698062,6.7309,148.52,148.49,6.7318]
[1745849698261,5.9493,148.54,148.49,6.7318]
[1745849698766,6.7309,148.52,148.5,6.7315]
[1745849698964,5.9493,148.54,148.42,13.4705]
[1745849699163,5.9493,148.54,148.49,6.7318]
[1745849699368,5.9493,148.54,148.42,13.4705]
[1745849699761,6.732,148.5,148.47,6.7327]
[1745849699966,26.1593,148.54,148.41,2.028]
[1745849700161,26.1593,148.54,148.45,6.7335]
[1745849700368,26.1593,148.54,148.41,2.028]
[1745849700572,6.7323,148.49,148.41,2.028]
[1745849700767,5.9493,148.54,148.49,6.732]
[1745849700966,5.9493,148.54,148.41,15.4991]
[1745849701365,5.9493,148.54,148.49,6.7318]
[1745849701666,6.7309,148.52,148.49,6.7318]
[1745849702072,6.7309,148.52,148.5,6.7315]
[1745849702268,6.7304,148.53,148.5,6.7315]
[1745849702469,5.9493,148.54,148.5,6.7315]
[1745849702664,6.7307,148.53,148.42,13.47]
[1745849702869,6.7307,148.53,148.43,13.4696]
[1745849703270,6.7307,148.53,148.51,6.731]
[1745849703573,5.9493,148.54,148.51,6.731]
[1745849703574,12.6793,148.54,148.51,6.731]
[1745849704169,6.7303,148.53,148.51,6.731]
[1745849704579,5.9493,148.54,148.43,13.4696]
[1745849705173,5.9493,148.54,148.41,2.028]
[1745849705469,26.1593,148.54,148.41,2.028]
[1745849705669,26.1593,148.54,148.42,6.7351]
[1745849706267,6.7345,148.44,148.41,6.7354]
[1745849706469,20.21,148.51,148.41,6.7354]
[1745849706670,20.21,148.51,148.36,484.38]
[1745849706875,20.21,148.51,148.41,6.7356]
[1745849707372,6.7343,148.45,148.41,6.7356]
[1745849707773,20.21,148.51,148.41,6.7356]
[1745849708486,6.7349,148.43,148.4,6.736]
[1745849708773,20.21,148.51,148.4,6.736]
[1745849708962,6.7345,148.44,148.4,6.736]
[1745849709164,6.7345,148.44,148.41,6.7356]
[1745849710175,6.7339,148.45,148.41,6.7356]
[1745849710674,6.7345,148.44,148.41,6.7356]
[1745849710876,6.7345,148.44,148.4,6.736]
[1745849711570,6.734,148.45,148.36,484.38]
[1745849711769,20.21,148.51,148.36,484.38]
[1745849712173,20.21,148.51,148.41,6.7354]
[1745849712673,6.7341,148.45,148.41,6.7354]
[1745849712873,20.21,148.51,148.41,6.7354]
[1745849713075,20.21,148.51,148.36,484.38]
[1745849713275,6.7332,148.47,148.36,484.38]
[1745849713573,365.0,148.52,148.43,6.7344]
[1745849713874,366.17262527,148.52,148.43,6.7344]
[1745849714076,366.17262527,148.52,148.44,6.7343]
[1745849714476,366.17262527,148.52,148.36,484.38]
[1745849714676,386.38262527,148.52,148.36,484.38]
[1745849715277,6.7342,148.45,148.36,484.38]
[1745849715480,386.38262527,148.52,148.42,6.7351]
[1745849715674,6.7337,148.46,148.36,484.38]
[1745849715980,386.38262527,148.52,148.42,6.735]
[1745849716174,6.7339,148.46,148.42,6.735]
[1745849716977,6.734,148.45,148.42,6.735]
[1745849717377,386.38262527,148.52,148.36,484.38]
[1745849717774,6.7341,148.45,148.36,484.38]
[1745849717979,6.7341,148.45,148.42,6.735]
[1745849718577,386.38262527,148.52,148.36,484.38]
[1745849718781,20.21,148.5,148.36,484.38]
[1745849719175,6.7355,148.42,148.39,6.7365]
[1745849720580,6.735,148.43,148.4,6.736]
[1745849721979,6.7353,148.42,148.39,6.7363]
[1745849724171,27.46378334,148.48,148.39,6.7363]
[1745849724676,6.7355,148.42,148.39,6.7363]
[1745849724882,27.46378334,148.48,148.38,6.7369]
[1745849725177,6.7366,148.39,148.33,4.0325]
[1745849725380,6.7366,148.39,148.36,6.7377]
[1745849725682,6.7369,148.39,148.3,20.2214]
[1745849725879,6.7369,148.39,148.36,6.7379]
[1745849726782,6.736,148.41,148.38,6.7368]
[1745849726982,20.21,148.46,148.31,13.4802]
[1745849727283,6.7354,148.42,148.39,6.7364]
[1745849728083,20.21,148.46,148.31,13.4802]
[1745849728478,6.7355,148.42,148.32,13.4796]
[1745849728984,6.7355,148.42,148.39,6.7363]
[1745849729285,6.7358,148.41,148.39,6.7363]
[1745849730883,20.21,148.46,148.39,6.7363]
[1745849731279,20.21,148.46,148.38,6.7368]
[1745849731583,20.21,148.46,148.32,13.4796]
[1745849731882,20.21,148.46,148.38,6.737]
[1745849732082,6.736,148.41,148.38,6.737]
[1745849734782,6.7362,148.4,148.38,6.737]
[1745849734981,20.21,148.46,148.38,6.737]
[1745849735383,6.7359,148.41,148.38,6.737]
[1745849735881,20.21,148.46,148.3,3.8742]
[1745849736177,20.21,148.44,148.3,3.8742]
[1745849736578,1.17311939,148.45,148.3,3.8742]
[1745849736884,20.21,148.47,148.38,6.7368]
[1745849738280,21.38278334,148.47,148.38,6.7368]
[1745849738786,6.7359,148.41,148.38,6.7368]
[1745849742590,6.7359,148.41,148.31,13.4802]
[1745849742990,6.7359,148.41,148.38,6.7368]
[1745849744790,6.7361,148.4,148.38,6.7368]
[1745849744990,6.7361,148.4,148.31,13.4802]
[1745849744991,6.7361,148.4,148.37,6.7373]
[1745849745589,6.7357,148.41,148.38,6.7369]
[1745849748292,21.38294145,148.47,148.37,6.7371]
[1745849748993,21.38294145,148.47,148.31,13.4802]
[1745849748994,1.17294145,148.47,148.3,3.8742]
[1745849749193,6.1054,148.5,148.31,1.21109105]
[1745849749391,486.15244748,148.56,148.31,361.0]
[1745849749593,6.7305,148.53,148.4,13.472]
[1745849749798,2.0207,148.55,148.41,6.051]
[1745849751592,6.7332,148.47,148.41,12.7865]
[1745849752095,2.0207,148.55,148.41,12.7865]
[1745849752298,385.21,148.54,148.4,484.98]
[1745849752799,20.21,148.52,148.36,6.1224]
[1745849753000,369.1009,148.51,148.36,6.1224]
[1745849753393,13.4639,148.5,148.38,6.7369]
[1745849753598,13.4639,148.5,148.36,6.1224]
[1745849753900,2.1068,148.49,148.36,10.8475]
[1745849754299,6.7363,148.4,148.36,4.1096]
[1745849754500,13.4653,148.48,148.32,484.98]
[1745849754701,13.4653,148.48,148.32,489.0896]
[1745849754995,13.4653,148.48,148.37,6.7372]
[1745849755201,13.4653,148.48,148.32,489.0896]
[1745849755400,6.7357,148.41,148.32,489.0896]
[1745849755697,13.4653,148.48,148.32,489.0896]
[1745849756101,6.7359,148.41,148.37,6.7371]
[1745849756605,13.4653,148.48,148.37,6.7371]
[1745849756902,13.4653,148.48,148.38,6.737]
[1745849757400,6.7355,148.42,148.38,6.737]
[1745849757595,13.4653,148.48,148.38,6.737]
[1745849757800,6.7357,148.42,148.38,6.737]
[1745849757991,13.4653,148.48,148.38,6.737]
[1745849758499,6.7361,148.41,148.37,6.7374]
[1745849759103,6.7361,148.41,148.38,6.737]
[1745849759803,6.7354,148.42,148.38,6.737]
[1745849760205,6.7354,148.42,148.39,6.7365]
[1745849760905,6.7354,148.42,148.38,6.7369]
[1745849761107,385.21,148.47,148.32,489.0896]
[1745849761407,385.21,148.46,148.32,489.0896]
[1745849761606,20.21,148.44,148.32,489.0896]
[1745849761807,1.9237,148.43,148.32,495.8292]
[1745849762005,1.9237,148.43,148.32,484.98]
[1745849762305,6.7387,148.35,148.31,6.74]
[1745849762709,1.9237,148.43,148.26,6.0346]
[1745849762910,1.9237,148.43,148.33,6.739]
[1745849763112,6.7369,148.39,148.26,6.0346]
[1745849763410,1.9237,148.43,148.26,6.0346]
[1745849763613,1.9237,148.43,148.35,6.7382]
[1745849763911,6.7368,148.39,148.35,6.7382]
[1745849764310,6.7368,148.39,148.36,6.7379]
[1745849764612,1.9237,148.43,148.27,13.484]
[1745849764910,6.7373,148.38,148.34,6.7386]
[1745849765111,1.9237,148.43,148.34,6.7386]
[1745849765312,1.9237,148.43,148.27,13.484]
[1745849765703,1.9237,148.43,148.26,6.0346]
[1745849766012,6.7392,148.34,148.3,6.7404]
[1745849766208,385.21,148.41,148.3,6.7404]
[1745849766409,365.0,148.4,148.3,6.7404]
[1745849766609,6.7392,148.34,148.3,6.7404]
[1745849766913,365.0,148.4,148.26,6.0346]
[1745849767212,6.7368,148.39,148.26,6.0346]
[1745849767413,4.0695,148.42,148.26,6.0346]
[1745849767713,6.7366,148.39,148.26,6.0346]
[1745849768114,6.7366,148.39,148.36,6.7377]
[1745849768415,4.0695,148.42,148.28,13.4831]
[1745849768610,4.0695,148.42,148.35,6.7382]
[1745849768812,6.7373,148.38,148.35,6.7382]
[1745849769011,4.0695,148.42,148.26,6.0346]
[1745849769217,4.0695,148.42,148.32,6.7394]
[1745849769408,24.2795,148.42,148.26,6.0346]
[1745849769713,365.0,148.41,148.26,6.0346]
[1745849770114,6.7393,148.33,148.3,6.7403]
[1745849770317,385.21,148.41,148.26,6.0346]
[1745849770514,365.0,148.4,148.26,6.0346]
[1745849770712,6.7396,148.33,148.29,6.7408]
[1745849770912,398.683,148.4,148.26,6.0346]
[1745849771112,365.0,148.39,148.26,6.0346]
[1745849772113,6.7392,148.34,148.3,6.7404]
[1745849772814,6.7394,148.33,148.29,6.741]
[1745849773008,365.0,148.39,148.29,6.741]
[1745849773509,385.21,148.39,148.28,6.7414]
[1745849774620,6.7401,148.32,148.28,6.7414]
[1745849775018,6.7401,148.32,148.29,6.741]
[1745849775215,6.7396,148.33,148.29,6.741]
[1745849776017,6.7391,148.34,148.3,6.7404]
[1745849776221,365.0,148.39,148.26,6.0346]
[1745849776719,6.739,148.34,148.26,6.0346]
[1745849777122,365.0,148.39,148.26,6.0346]
[1745849777819,6.7369,148.39,148.27,13.484]
[1745849778014,4.0695,148.42,148.27,13.484]
[1745849778921,6.737,148.39,148.35,6.7381]
[1745849779322,4.0695,148.42,148.35,6.7381]
[1745849779519,6.7374,148.38,148.35,6.7381]
[1745849779818,4.0695,148.42,148.36,6.7379]
[1745849780119,6.7364,148.4,148.27,13.484]
[1745849780523,6.7364,148.4,148.28,1.21135423]
[1745849781020,6.7364,148.4,148.37,6.7372]
[1745849781225,6.7358,148.41,148.26,6.0346]
[1745849781419,1.9237,148.43,148.39,6.7366]
[1745849782425,1.9237,148.43,148.26,6.0346]
[1745849782620,4.039,148.48,148.27,1.21122338]
[1745849782819,1.9926,148.47,148.27,362.21122338]
[1745849783020,6.7347,148.44,148.31,13.4801]
[1745849783219,6.7347,148.44,148.32,6.1783]
[1745849783718,6.7348,148.43,148.4,6.7358]
[1745849783923,1.9926,148.47,148.32,6.1783]
[1745849784220,1.9926,148.47,148.39,6.7364]
[1745849784523,1.9926,148.47,148.32,6.1783]
[1745849785020,6.735,148.43,148.4,6.7361]
[1745849785722,6.7352,148.42,148.4,6.7361]
[1745849786022,6.7352,148.42,148.39,6.7364]
[1745849786821,6.7352,148.42,148.4,6.7361]
[1745849787021,6.735,148.43,148.4,6.7361]
[1745849787217,1.9926,148.47,148.33,13.4785]
[1745849787527,6.7336,148.46,148.32,6.1783]
[1745849787725,4.08968,148.49,148.32,6.1783]
[1745849787920,6.7339,148.45,148.32,6.1783]
[1745849788220,4.08968,148.49,148.35,13.4767]
[1745849788424,4.08968,148.49,148.35,498.4967]
[1745849789127,6.7335,148.46,148.35,498.4967]
[1745849789824,6.7331,148.47,148.36,13.4758]
[1745849790527,6.7327,148.48,148.36,13.4758]
[1745849790731,6.7327,148.48,148.45,6.7336]
[1745849791029,6.733,148.47,148.37,13.4749]
[1745849791227,6.733,148.47,148.38,6.2036]
[1745849791428,4.08968,148.49,148.45,6.7334]
[1745849791629,2.13118,148.49,148.39,13.473]
[1745849792328,2.13118,148.49,148.4,13.4723]
[1745849792528,2.13118,148.49,148.48,6.7325]
[1745849795028,1.9263,148.57,148.44,5.8967]
[1745849795924,1.9263,148.57,148.45,498.2678]
[1745849796226,8.6551,148.57,148.54,6.7297]
[1745849796922,6.7289,148.56,148.54,6.7297]
[1745849797127,1.9263,148.57,148.54,6.7297]
[1745849797428,4.1518,148.59,148.55,6.7291]
[1745849797731,6.7282,148.58,148.55,6.7291]
[1745849798427,8.7905,148.59,148.56,6.7286]
[1745849798931,1.17148051,148.65,148.59,6.7274]
[1745849799137,1.17148051,148.65,148.48,13.4646]
[1745849799430,1.9679,148.65,148.48,13.4646]
[1745849799824,2.0992,148.64,148.48,13.4646]
[1745849800736,2.0992,148.64,148.45,845.8]
[1745849801237,2.0992,148.64,148.55,6.7293]
[1745849801535,2.0992,148.64,148.46,13.4667]
[1745849801734,6.7278,148.59,148.55,6.729]
[1745849802036,2.0992,148.64,148.55,6.729]
[1745849802336,2.0992,148.64,148.46,13.4667]
[1745849802836,365.0,148.63,148.44,5.8967]
[1745849803038,1.9153,148.62,148.44,5.8967]
[1745849803235,6.73,148.54,148.5,6.7313]
[1745849803428,6.73,148.54,148.44,5.8967]
[1745849803927,6.73,148.54,148.5,6.7315]
[1745849804235,6.7295,148.55,148.52,6.7307]
[1745849804436,365.0,148.61,148.44,5.8967]
[1745849804637,6.7293,148.55,148.44,5.8967]
[1745849804937,365.0,148.61,148.44,5.8967]
[1745849805237,6.729,148.56,148.44,5.8967]
[1745849805431,365.0,148.61,148.44,5.8967]
[1745849805637,366.17183554,148.61,148.44,5.8967]
[1745849805834,366.17183554,148.61,148.52,6.7305]
[1745849806133,6.7291,148.56,148.44,5.8967]
[1745849806735,6.7294,148.55,148.52,6.7303]
[1745849806936,386.38183554,148.61,148.44,5.8967]
[1745849807436,6.7303,148.53,148.44,5.8967]
[1745849807631,386.38183554,148.61,148.44,5.8967]
[1745849807833,6.7296,148.55,148.44,5.8967]
[1745849808141,365.0,148.6,148.44,5.8967]
[1745849808335,1.9608,148.59,148.44,5.8967]
[1745849808640,1.9608,148.59,148.45,13.4677]
[1745849809141,6.729,148.56,148.53,6.7299]
[1745849810442,25.5849251,148.54,148.45,13.4677]
[1745849810737,25.5849251,148.47,148.35,484.52]
[1745849810942,12.79246255,148.44,148.33,484.52]